bitfinex/quotes_BTCUSD_20230831
["timestamp","ask_amount","ask_price","bid_price","bid_amount"]
[1693466211393,4.36446632,27279.0,27278.0,0.021008]
[1693466211600,4.36428632,27279.0,27278.0,0.021008]
[1693466211813,4.36512632,27279.0,27278.0,0.021008]
[1693466212013,4.36518632,27279.0,27278.0,0.021008]
[1693466212541,4.36524632,27279.0,27278.0,0.021008]
[1693466212756,4.36494632,27279.0,27278.0,0.021008]
[1693466212965,4.36500632,27279.0,27278.0,0.021008]
[1693466213200,4.36536632,27279.0,27278.0,0.021008]
[1693466213406,4.36794632,27279.0,27278.0,0.021008]
[1693466213611,4.37892632,27279.0,27278.0,0.021008]
[1693466213821,4.37676632,27279.0,27278.0,0.021008]
[1693466214022,4.37736632,27279.0,27278.0,0.021008]
[1693466214256,4.46045569,27279.0,27278.0,0.021008]
[1693466214458,4.47029569,27279.0,27278.0,0.021008]
[1693466214868,4.46831569,27279.0,27278.0,0.021008]
[1693466215003,4.38540632,27279.0,27278.0,0.021008]
[1693466215220,4.37568632,27279.0,27278.0,0.021008]
[1693466215428,4.37112632,27279.0,27278.0,0.021008]
[1693466215623,4.37154632,27279.0,27278.0,0.021008]
[1693466215831,4.37148632,27279.0,27278.0,0.021008]
[1693466216102,4.37502632,27279.0,27278.0,0.021008]
[1693466216300,4.37316632,27279.0,27278.0,0.021008]
[1693466216504,4.44032065,27279.0,27278.0,0.021008]
[1693466216808,4.44752065,27279.0,27278.0,0.021008]
[1693466216990,4.44740065,27279.0,27278.0,0.021008]
[1693466217189,4.44668065,27279.0,27278.0,0.021008]
[1693466217384,4.44452065,27279.0,27278.0,0.021008]
[1693466217547,4.44662065,27279.0,27278.0,0.021008]
[1693466217753,4.44680065,27279.0,27278.0,0.021008]
[1693466217955,4.44674065,27279.0,27278.0,0.021008]
[1693466218314,4.44626065,27279.0,27278.0,0.021008]
[1693466218510,4.44590065,27279.0,27278.0,0.021008]
[1693466218921,4.44626065,27279.0,27278.0,0.021008]
[1693466219115,4.44620065,27279.0,27278.0,0.021008]
[1693466219324,4.43846065,27279.0,27278.0,0.021008]
[1693466219546,4.43840065,27279.0,27278.0,0.021008]
[1693466219726,4.44368065,27279.0,27278.0,0.021008]
[1693466219922,4.44212065,27279.0,27278.0,0.021008]
[1693466220173,4.43906065,27279.0,27278.0,0.021008]
[1693466220352,4.43648065,27279.0,27278.0,0.021008]
[1693466220603,4.43726065,27279.0,27278.0,0.021008]
[1693466220804,4.43372065,27279.0,27278.0,0.021008]
[1693466221006,4.43534065,27279.0,27278.0,0.021008]
[1693466221218,4.43570065,27279.0,27278.0,0.021008]
[1693466221437,4.36494632,27279.0,27278.0,0.021008]
[1693466221618,4.36290632,27279.0,27278.0,0.021008]
[1693466221753,4.36296632,27279.0,27278.0,0.021008]
[1693466221953,4.36266632,27279.0,27278.0,0.021008]
[1693466222155,4.36278632,27279.0,27278.0,0.021008]
[1693466222357,4.36146632,27279.0,27278.0,0.021008]
[1693466222676,4.35786632,27279.0,27278.0,0.021008]
[1693466223028,4.36008632,27279.0,27278.0,0.021008]
[1693466223378,4.36014632,27279.0,27278.0,0.021008]
[1693466223584,4.36140632,27279.0,27278.0,0.021008]
[1693466223792,4.36122632,27279.0,27278.0,0.021008]
[1693466223991,4.36152632,27279.0,27278.0,0.021008]
[1693466224207,4.36266632,27279.0,27278.0,0.021008]
[1693466224432,4.36296632,27279.0,27278.0,0.021008]
[1693466224629,4.36350632,27279.0,27278.0,0.021008]
[1693466224829,4.36314632,27279.0,27278.0,0.021008]
[1693466225186,4.36320632,27279.0,27278.0,0.021008]
[1693466225392,4.36326632,27279.0,27278.0,0.021008]
[1693466225591,4.36110632,27279.0,27278.0,0.021008]
[1693466225837,4.36122632,27279.0,27278.0,0.021008]
[1693466226051,4.35288632,27279.0,27278.0,0.021008]
[1693466226266,4.35180632,27279.0,27278.0,0.021008]
[1693466226472,4.35174632,27279.0,27278.0,0.021008]
[1693466226642,4.35180632,27279.0,27278.0,0.021008]
[1693466226847,4.35288632,27279.0,27278.0,0.021008]
[1693466227004,4.35198632,27279.0,27278.0,0.021008]
[1693466227205,4.35288632,27279.0,27278.0,0.021008]
[1693466227412,4.35972632,27279.0,27278.0,0.021008]
[1693466227613,4.36230632,27279.0,27278.0,0.021008]
[1693466227839,4.36062632,27279.0,27278.0,0.021008]
[1693466228039,4.36068632,27279.0,27278.0,0.021008]
[1693466228218,4.36056632,27279.0,27278.0,0.021008]
[1693466228421,4.36068632,27279.0,27278.0,0.021008]
[1693466228596,4.36074632,27279.0,27278.0,0.021008]
[1693466228796,4.36092632,27279.0,27278.0,0.021008]
[1693466228998,4.35918632,27279.0,27278.0,0.021008]
[1693466229222,4.35924632,27279.0,27278.0,0.021008]
[1693466229585,4.35930632,27279.0,27278.0,0.021008]
[1693466229761,4.35942632,27279.0,27278.0,0.021008]
[1693466229986,4.36134632,27279.0,27278.0,0.021008]
[1693466230194,4.35978632,27279.0,27278.0,0.021008]
[1693466230762,4.36014632,27279.0,27278.0,0.021008]
[1693466231008,4.36026632,27279.0,27278.0,0.021008]
[1693466231125,4.35942632,27279.0,27278.0,0.021008]
[1693466231329,4.35966632,27279.0,27278.0,0.021008]
[1693466232023,4.35990632,27279.0,27278.0,0.021008]
[1693466232154,4.35828632,27279.0,27278.0,0.021008]
[1693466232364,4.35624632,27279.0,27278.0,0.021008]
[1693466232570,4.35690632,27279.0,27278.0,0.021008]
[1693466232769,4.35708632,27279.0,27278.0,0.021008]
[1693466232974,4.35768632,27279.0,27278.0,0.021008]
[1693466233187,4.35720632,27279.0,27278.0,0.021008]
[1693466233347,4.35690632,27279.0,27278.0,0.021008]
[1693466233783,4.35654632,27279.0,27278.0,0.021008]
[1693466233980,4.35636632,27279.0,27278.0,0.021008]
[1693466234264,4.35054632,27279.0,27278.0,0.021008]
[1693466234468,4.34994632,27279.0,27278.0,0.021008]
[1693466234670,4.35000632,27279.0,27278.0,0.021008]
[1693466234881,4.35216632,27279.0,27278.0,0.021008]
[1693466235086,4.35210632,27279.0,27278.0,0.021008]
[1693466235548,4.35168632,27279.0,27278.0,0.021008]
[1693466235750,4.35120632,27279.0,27278.0,0.021008]
[1693466235949,4.35078632,27279.0,27278.0,0.021008]
[1693466236155,4.35084632,27279.0,27278.0,0.021008]
[1693466236585,4.35096632,27279.0,27278.0,0.021008]
[1693466236797,4.35240632,27279.0,27278.0,0.021008]
[1693466236997,4.35216632,27279.0,27278.0,0.021008]
[1693466237195,4.35492632,27279.0,27278.0,0.021008]
[1693466237374,4.35360632,27279.0,27278.0,0.021008]
[1693466237577,4.35372632,27279.0,27278.0,0.021008]
[1693466237774,4.35336632,27279.0,27278.0,0.021008]
[1693466237984,4.35372632,27279.0,27278.0,0.021008]
[1693466238177,4.35384632,27279.0,27278.0,0.021008]
[1693466238374,4.35354632,27279.0,27278.0,0.021008]
[1693466238614,4.35474632,27279.0,27278.0,0.021008]
[1693466239117,4.35480632,27279.0,27278.0,0.021008]
[1693466239504,4.35534632,27279.0,27278.0,0.021008]
[1693466239705,4.35528632,27279.0,27278.0,0.021008]
[1693466240051,4.35552632,27279.0,27278.0,0.021008]
[1693466240344,4.35564632,27279.0,27278.0,0.021008]
[1693466240559,4.35594632,27279.0,27278.0,0.021008]
[1693466240759,4.35600632,27279.0,27278.0,0.021008]
[1693466240917,4.35570632,27279.0,27278.0,0.021008]
[1693466241113,4.35588632,27279.0,27278.0,0.021008]
[1693466241619,4.36002632,27279.0,27278.0,0.021008]
[1693466241847,4.36728632,27279.0,27278.0,0.021008]
[1693466242044,4.36776632,27279.0,27278.0,0.021008]
[1693466242252,4.36716632,27279.0,27278.0,0.021008]
[1693466242402,4.36734632,27279.0,27278.0,0.021008]
[1693466242602,4.36728632,27279.0,27278.0,0.021008]
[1693466242868,4.36866632,27279.0,27278.0,0.021008]
[1693466243069,4.36836632,27279.0,27278.0,0.021008]
[1693466243274,4.36764632,27279.0,27278.0,0.021008]
[1693466243473,4.36830632,27279.0,27278.0,0.021008]
[1693466243710,4.37292632,27279.0,27278.0,0.021008]
[1693466243936,4.37358632,27279.0,27278.0,0.021008]
[1693466244139,4.37550632,27279.0,27278.0,0.021008]
[1693466244311,4.37478632,27279.0,27278.0,0.021008]
[1693466244492,4.37340632,27279.0,27278.0,0.021008]
[1693466244692,4.37334632,27279.0,27278.0,0.021008]
[1693466244925,4.37040632,27279.0,27278.0,0.021008]
[1693466245116,4.37472632,27279.0,27278.0,0.021008]
[1693466245349,4.46716002,27279.0,27278.0,0.021008]
[1693466245741,4.46746002,27279.0,27278.0,0.021008]
[1693466245918,4.37340632,27279.0,27278.0,0.021008]
[1693466246140,4.37286632,27279.0,27278.0,0.021008]
[1693466246338,4.37106632,27279.0,27278.0,0.021008]
[1693466246597,4.37160632,27279.0,27278.0,0.021008]
[1693466246803,4.37220632,27279.0,27278.0,0.021008]
[1693466246979,4.74896543,27279.0,27278.0,0.021008]
[1693466247312,4.75112543,27279.0,27278.0,0.021008]
[1693466247484,4.75214543,27279.0,27278.0,0.021008]
[1693466247689,4.75232543,27279.0,27278.0,0.021008]
[1693466247872,4.74884543,27279.0,27278.0,0.021008]
[1693466248067,4.75220543,27279.0,27278.0,0.021008]
[1693466248411,4.75148543,27279.0,27278.0,0.021008]
[1693466248567,4.75190543,27279.0,27278.0,0.021008]
[1693466248772,4.75220543,27279.0,27278.0,0.021008]
[1693466248990,4.75208543,27279.0,27278.0,0.021008]
[1693466249190,4.75148543,27279.0,27278.0,0.021008]
[1693466249392,4.75286543,27279.0,27278.0,0.021008]
[1693466249592,4.75250543,27279.0,27278.0,0.021008]
[1693466249769,4.75190543,27279.0,27278.0,0.021008]
[1693466249971,4.75208543,27279.0,27278.0,0.021008]
[1693466250173,4.75292543,27279.0,27278.0,0.021008]
[1693466250401,4.84837966,27279.0,27278.0,0.021008]
[1693466250605,4.84741966,27279.0,27278.0,0.021008]
[1693466250806,4.84345966,27279.0,27278.0,0.021008]
[1693466251010,4.84417966,27279.0,27278.0,0.021008]
[1693466251207,4.84501966,27279.0,27278.0,0.021008]
[1693466251748,5.41468291,27279.0,27278.0,0.021008]
[1693466251910,4.84501966,27279.0,27278.0,0.021008]
[1693466252108,4.84507966,27279.0,27278.0,0.021008]
[1693466252308,4.84501966,27279.0,27278.0,0.021008]
[1693466252510,4.84375966,27279.0,27278.0,0.021008]
[1693466252952,4.84381966,27279.0,27278.0,0.021008]
[1693466253585,4.84375966,27279.0,27278.0,0.021008]
[1693466253722,4.84327966,27279.0,27278.0,0.021008]
[1693466253915,4.84363966,27279.0,27278.0,0.021008]
[1693466254404,4.84465966,27279.0,27278.0,0.021008]
[1693466254582,5.41595626,27279.0,27278.0,0.021008]
[1693466254785,5.41763626,27279.0,27278.0,0.021008]
[1693466255186,5.41757626,27279.0,27278.0,0.021008]
[1693466255600,5.41793626,27279.0,27278.0,0.021008]
[1693466255804,5.41751626,27279.0,27278.0,0.021008]
[1693466256003,5.41739626,27279.0,27278.0,0.021008]
[1693466256184,5.41745626,27279.0,27278.0,0.021008]
[1693466256824,5.41733626,27279.0,27278.0,0.021008]
[1693466257062,5.41727626,27279.0,27278.0,0.021008]
[1693466257414,5.41715626,27279.0,27278.0,0.021008]
[1693466257622,5.41709626,27279.0,27278.0,0.021008]
[1693466258030,5.41697626,27279.0,27278.0,0.021008]
[1693466258530,5.41691626,27279.0,27278.0,0.021008]
[1693466258726,5.41577626,27279.0,27278.0,0.021008]
[1693466258932,5.41661626,27279.0,27278.0,0.021008]
[1693466259127,5.41655626,27279.0,27278.0,0.021008]
[1693466259334,5.41643626,27279.0,27278.0,0.021008]
[1693466259534,5.41655626,27279.0,27278.0,0.021008]
[1693466259817,5.41649626,27279.0,27278.0,0.021008]
[1693466260134,5.41643626,27279.0,27278.0,0.021008]
[1693466260476,5.41565626,27279.0,27278.0,0.021008]
[1693466260884,5.41655626,27279.0,27278.0,0.021008]
[1693466261294,5.41679626,27279.0,27278.0,0.021008]
[1693466261447,5.41541626,27279.0,27278.0,0.021008]
[1693466261672,5.59529626,27279.0,27278.0,0.021008]
[1693466261872,5.59541626,27279.0,27278.0,0.021008]
[1693466262115,5.59535626,27279.0,27278.0,0.021008]
[1693466262518,5.59529626,27279.0,27278.0,0.021008]
[1693466262898,5.59523626,27279.0,27278.0,0.021008]
[1693466263162,5.59529626,27279.0,27278.0,0.021008]
[1693466263362,5.59523626,27279.0,27278.0,0.021008]
[1693466263541,5.59511626,27279.0,27278.0,0.021008]
[1693466263866,5.59397626,27279.0,27278.0,0.021008]
[1693466264075,5.59499626,27279.0,27278.0,0.021008]
[1693466264276,5.59343626,27279.0,27278.0,0.021008]
[1693466264445,5.22219715,27279.0,27278.0,0.021008]
[1693466264639,5.21601715,27279.0,27278.0,0.021008]
[1693466264840,5.21523715,27279.0,27278.0,0.021008]
[1693466265011,5.21133715,27279.0,27278.0,0.021008]
[1693466265386,5.21169715,27279.0,27278.0,0.021008]
[1693466265532,5.21145715,27279.0,27278.0,0.021008]
[1693466265739,5.21169715,27279.0,27278.0,0.021008]
[1693466265946,5.21163715,27279.0,27278.0,0.021008]
[1693466266152,5.21205715,27279.0,27278.0,0.021008]
[1693466266347,5.21373715,27279.0,27278.0,0.021008]
[1693466266526,5.21385715,27279.0,27278.0,0.021008]
[1693466267025,5.21397715,27279.0,27278.0,0.021008]
[1693466267212,5.21403715,27279.0,27278.0,0.021008]
[1693466267423,5.21433715,27279.0,27278.0,0.021008]
[1693466267820,5.21439715,27279.0,27278.0,0.021008]
[1693466268045,5.21469715,27279.0,27278.0,0.021008]
[1693466268413,5.21439715,27279.0,27278.0,0.021008]
[1693466268642,5.21451715,27279.0,27278.0,0.021008]
[1693466269125,5.21991715,27279.0,27278.0,0.021008]
[1693466269289,5.21973715,27279.0,27278.0,0.021008]
[1693466269493,5.21961715,27279.0,27278.0,0.021008]
[1693466269704,5.22003715,27279.0,27278.0,0.021008]
[1693466269860,5.21853715,27279.0,27278.0,0.021008]
[1693466270062,5.21775715,27279.0,27278.0,0.021008]
[1693466270260,5.21823715,27279.0,27278.0,0.021008]
[1693466270506,5.21949715,27279.0,27278.0,0.021008]
[1693466270922,5.22159715,27279.0,27278.0,0.021008]
[1693466271125,5.58995626,27279.0,27278.0,0.021008]
[1693466271350,5.59007626,27279.0,27278.0,0.021008]
[1693466271549,5.59001626,27279.0,27278.0,0.021008]
[1693466271830,5.59019626,27279.0,27278.0,0.021008]
[1693466272188,5.59013626,27279.0,27278.0,0.021008]
[1693466272387,5.59025626,27279.0,27278.0,0.021008]
[1693466272590,5.59037626,27279.0,27278.0,0.021008]
[1693466273020,5.59013626,27279.0,27278.0,0.021008]
[1693466273357,5.59007626,27279.0,27278.0,0.021008]
[1693466273540,5.58881626,27279.0,27278.0,0.021008]
[1693466273744,5.58917626,27279.0,27278.0,0.021008]
[1693466273948,5.58947626,27279.0,27278.0,0.021008]
[1693466274102,5.58965626,27279.0,27278.0,0.021008]
[1693466274314,5.58971626,27279.0,27278.0,0.021008]
[1693466274702,5.58977626,27279.0,27278.0,0.021008]
[1693466274903,5.58959626,27279.0,27278.0,0.021008]
[1693466275105,5.58953626,27279.0,27278.0,0.021008]
[1693466275824,5.58947626,27279.0,27278.0,0.021008]
[1693466276026,5.59289626,27279.0,27278.0,0.021008]
[1693466276231,5.59283626,27279.0,27278.0,0.021008]
[1693466276435,5.59295626,27279.0,27278.0,0.021008]
[1693466276590,5.59283626,27279.0,27278.0,0.021008]
[1693466277107,5.59277626,27279.0,27278.0,0.021008]
[1693466277344,5.59247626,27279.0,27278.0,0.021008]
[1693466277448,5.59295626,27279.0,27278.0,0.021008]
[1693466277654,5.59325626,27279.0,27278.0,0.021008]
[1693466277909,5.59319626,27279.0,27278.0,0.021008]
[1693466278314,5.59313626,27279.0,27278.0,0.021008]
[1693466278790,5.59301626,27279.0,27278.0,0.021008]
[1693466278986,5.59307626,27279.0,27278.0,0.021008]
[1693466279185,5.59295626,27279.0,27278.0,0.021008]
[1693466279550,5.59301626,27279.0,27278.0,0.021008]
[1693466279688,5.59295626,27279.0,27278.0,0.021008]
[1693466279883,5.59289626,27279.0,27278.0,0.021008]
[1693466280106,5.59313626,27279.0,27278.0,0.021008]
[1693466280320,5.59307626,27279.0,27278.0,0.021008]
[1693466280573,5.59271626,27279.0,27278.0,0.021008]
[1693466280786,5.59103626,27279.0,27278.0,0.021008]
[1693466280992,5.58989626,27279.0,27278.0,0.021008]
[1693466281291,5.59115626,27279.0,27278.0,0.021008]
[1693466281427,5.59097626,27279.0,27278.0,0.021008]
[1693466281630,5.59091626,27279.0,27278.0,0.021008]
[1693466281922,5.59079626,27279.0,27278.0,0.021008]
[1693466282198,5.59097626,27279.0,27278.0,0.021008]
[1693466282397,5.59103626,27279.0,27278.0,0.021008]
[1693466282604,5.59097626,27279.0,27278.0,0.021008]
[1693466283401,5.59091626,27279.0,27278.0,0.021008]
[1693466283549,5.59049626,27279.0,27278.0,0.021008]
[1693466283949,5.59055626,27279.0,27278.0,0.021008]
[1693466284417,5.59061626,27279.0,27278.0,0.021008]
[1693466284617,5.59091626,27279.0,27278.0,0.021008]
[1693466285072,5.59109626,27279.0,27278.0,0.021008]
[1693466285275,5.59091626,27279.0,27278.0,0.021008]
[1693466285496,5.59085626,27279.0,27278.0,0.021008]
[1693466285655,5.59037626,27279.0,27278.0,0.021008]
[1693466286063,5.58383626,27279.0,27278.0,0.021008]
[1693466286258,5.58389626,27279.0,27278.0,0.021008]
[1693466286468,5.21703715,27279.0,27278.0,0.021008]
[1693466286851,5.21721715,27279.0,27278.0,0.021008]
[1693466287025,5.21733715,27279.0,27278.0,0.021008]
[1693466287384,5.22195715,27279.0,27278.0,0.021008]
[1693466287563,5.22219715,27279.0,27278.0,0.021008]
[1693466287762,5.52924834,27279.0,27278.0,0.021008]
[1693466288025,5.53032834,27279.0,27278.0,0.021008]
[1693466288193,5.53038834,27279.0,27278.0,0.021008]
[1693466288397,5.53098834,27279.0,27278.0,0.021008]
[1693466288694,5.53788834,27279.0,27278.0,0.021008]
[1693466288871,5.53974834,27279.0,27278.0,0.021008]
[1693466289072,5.54022834,27279.0,27278.0,0.021008]
[1693466289338,5.54052834,27279.0,27278.0,0.021008]
[1693466289534,5.54028834,27279.0,27278.0,0.021008]
[1693466289874,5.54046834,27279.0,27278.0,0.021008]
[1693466290079,5.54052834,27279.0,27278.0,0.021008]
[1693466290305,5.54016834,27279.0,27278.0,0.021008]
[1693466290503,5.54064834,27279.0,27278.0,0.021008]
[1693466290773,5.54184834,27279.0,27278.0,0.021008]
[1693466290970,5.54100834,27279.0,27278.0,0.021008]
[1693466291180,5.54094834,27279.0,27278.0,0.021008]
[1693466291534,5.54202834,27279.0,27278.0,0.021008]
[1693466291734,5.54160834,27279.0,27278.0,0.021008]
[1693466292042,5.54220834,27279.0,27278.0,0.021008]
[1693466292463,5.54232834,27279.0,27278.0,0.021008]
[1693466292670,5.54136834,27279.0,27278.0,0.021008]
[1693466292994,5.54154834,27279.0,27278.0,0.021008]
[1693466293214,5.54118834,27279.0,27278.0,0.021008]
[1693466293411,5.54124834,27279.0,27278.0,0.021008]
[1693466293738,5.54142834,27279.0,27278.0,0.021008]
[1693466293873,5.54202834,27279.0,27278.0,0.021008]
[1693466294090,5.54208834,27279.0,27278.0,0.021008]
[1693466294286,5.54196834,27279.0,27278.0,0.021008]
[1693466294486,5.54214834,27279.0,27278.0,0.021008]
[1693466294683,5.54628834,27279.0,27278.0,0.021008]
[1693466295051,5.54616834,27279.0,27278.0,0.021008]
[1693466295209,5.54622834,27279.0,27278.0,0.021008]
[1693466295405,5.54598834,27279.0,27278.0,0.021008]
[1693466295650,5.54610834,27279.0,27278.0,0.021008]
[1693466295855,5.54640834,27279.0,27278.0,0.021008]
[1693466296034,5.54616834,27279.0,27278.0,0.021008]
[1693466296382,5.54562834,27279.0,27278.0,0.021008]
[1693466296513,5.54574834,27279.0,27278.0,0.021008]
[1693466296718,5.54508834,27279.0,27278.0,0.021008]
[1693466296924,5.54496834,27279.0,27278.0,0.021008]
[1693466297126,5.54508834,27279.0,27278.0,0.021008]
[1693466297326,5.54514834,27279.0,27278.0,0.021008]
[1693466297528,5.54520834,27279.0,27278.0,0.021008]
[1693466297870,5.54472834,27279.0,27278.0,0.021008]
[1693466298048,5.50884834,27279.0,27278.0,0.021008]
[1693466298252,5.47980834,27279.0,27278.0,0.021008]
[1693466298465,5.55432834,27279.0,27278.0,0.021008]
[1693466298669,5.55510834,27279.0,27278.0,0.021008]
[1693466298863,5.68038834,27279.0,27278.0,0.021008]
[1693466299041,5.51832834,27279.0,27278.0,0.021008]
[1693466299254,5.55438834,27279.0,27278.0,0.021008]
[1693466299462,5.55480834,27279.0,27278.0,0.021008]
[1693466299666,5.64426834,27279.0,27278.0,0.021008]
[1693466299985,5.67882834,27279.0,27278.0,0.021008]
[1693466300145,5.67930834,27279.0,27278.0,0.021008]
[1693466300509,5.67906834,27279.0,27278.0,0.021008]
[1693466300649,5.67870834,27279.0,27278.0,0.021008]
[1693466300848,0.04,27276.0,27275.0,0.239908]
[1693466301052,4.68812564,27276.0,27275.0,0.239908]
[1693466301279,5.51907283,27276.0,27275.0,0.021008]
[1693466301481,5.52045283,27276.0,27275.0,0.021008]
[1693466301650,5.52093283,27276.0,27275.0,0.021008]
[1693466301846,5.51931283,27276.0,27275.0,0.021008]
[1693466302170,5.55795283,27276.0,27275.0,0.021008]
[1693466302530,5.55531283,27276.0,27275.0,0.021008]
[1693466302663,5.55501283,27276.0,27275.0,0.021008]
[1693466302867,5.55489283,27276.0,27275.0,0.021008]
[1693466303100,5.59101283,27276.0,27275.0,0.021008]
[1693466303302,5.59089283,27276.0,27275.0,0.021008]
[1693466303558,5.59107283,27276.0,27275.0,0.021008]
[1693466303957,5.59353283,27276.0,27275.0,0.021008]
[1693466304183,5.96021194,27276.0,27275.0,0.021008]
[1693466304409,5.95895194,27276.0,27275.0,0.021008]
[1693466304592,5.95889194,27276.0,27275.0,0.021008]
[1693466304766,5.95901194,27276.0,27275.0,0.021008]
[1693466305173,5.95889194,27276.0,27275.0,0.021008]
[1693466305371,5.95733194,27276.0,27275.0,0.021008]
[1693466305571,5.95727194,27276.0,27275.0,0.021008]
[1693466305994,5.95733194,27276.0,27275.0,0.021008]
[1693466306202,5.95655194,27276.0,27275.0,0.021008]
[1693466306355,5.95649194,27276.0,27275.0,0.021008]
[1693466306553,5.95655194,27276.0,27275.0,0.021008]
[1693466306883,5.95673194,27276.0,27275.0,0.021008]
[1693466307056,5.95679194,27276.0,27275.0,0.021008]
[1693466307258,5.95727194,27276.0,27275.0,0.021008]
[1693466307476,5.95721194,27276.0,27275.0,0.021008]
[1693466307677,5.95703194,27276.0,27275.0,0.021008]
[1693466307874,5.95709194,27276.0,27275.0,0.021008]
[1693466308079,5.95673194,27276.0,27275.0,0.021008]
[1693466308482,5.95655194,27276.0,27275.0,0.021008]
[1693466308723,5.95703194,27276.0,27275.0,0.021008]
[1693466309077,5.95739194,27276.0,27275.0,0.021008]
[1693466309278,5.95715194,27276.0,27275.0,0.021008]
[1693466309396,5.95733194,27276.0,27275.0,0.021008]
[1693466309595,5.95787194,27276.0,27275.0,0.021008]
[1693466309880,5.95649194,27276.0,27275.0,0.021008]
[1693466310062,5.95703194,27276.0,27275.0,0.021008]
[1693466310444,5.95769194,27276.0,27275.0,0.021008]
[1693466310639,5.95739194,27276.0,27275.0,0.021008]
[1693466310849,5.51295283,27276.0,27275.0,0.021008]
[1693466311468,5.58609283,27276.0,27275.0,0.021008]
[1693466311671,5.58597283,27276.0,27275.0,0.021008]
[1693466311889,5.51295283,27276.0,27275.0,0.021008]
[1693466313647,0.02,27275.0,27274.0,0.1662]
[1693466313840,3.56884383,27275.0,27273.0,0.00099158]
[1693466314058,1.62607554,27274.0,27272.0,0.2816]
[1693466314284,3.89625272,27273.0,27272.0,0.2216]
[1693466314511,4.28233183,27273.0,27272.0,0.2216]
[1693466314644,4.28233183,27273.0,27271.0,0.2588]
[1693466314865,0.9603552,27272.0,27271.0,0.2588]
[1693466315069,3.1604112,27272.0,27271.0,0.1]
[1693466316343,3.1824112,27272.0,27271.0,0.1]
[1693466317329,3.1824112,27272.0,27271.0,1.642358]
[1693466317330,0.9823552,27272.0,27271.0,1.642358]
[1693466317543,0.35223798,27272.0,27271.0,2.395737]
[1693466317747,0.35223798,27272.0,27271.0,2.43242326]
[1693466317748,0.19804002,27272.0,27271.0,2.43242326]
[1693466317947,0.26403811,27275.0,27274.0,0.12]
[1693466318146,0.9968,27279.0,27276.0,0.1]
[1693466318147,0.26403811,27277.0,27276.0,0.1]
[1693466318412,0.26403811,27277.0,27276.0,1.64209]
[1693466318614,0.71619382,27278.0,27277.0,0.1]
[1693466318615,0.26403811,27278.0,27277.0,0.1]
[1693466318808,0.94250658,27278.0,27277.0,0.1756]
[1693466319894,0.94350658,27278.0,27277.0,0.1816]
[1693466320988,0.94550658,27278.0,27277.0,0.1886]
[1693466321786,0.94550658,27278.0,27277.0,0.335378]
[1693466322212,0.68146847,27278.0,27277.0,0.335378]
[1693466324991,1.41465947,27278.0,27277.0,0.335378]
[1693466327235,1.41465947,27278.0,27277.0,0.275378]
[1693466327441,1.41465947,27278.0,27277.0,0.255378]
[1693466327934,0.86146847,27278.0,27277.0,0.255378]
[1693466329162,1.08113803,27278.0,27277.0,0.179778]
[1693466332407,1.11112324,27278.0,27277.0,0.179778]
[1693466334384,1.08113803,27278.0,27277.0,0.179778]
[1693466337278,1.08113803,27278.0,27277.0,0.255378]
[1693466338723,1.25677841,27278.0,27277.0,1.068596]
[1693466341685,0.8906993,27278.0,27277.0,1.801814]
[1693466341798,0.67102974,27278.0,27277.0,1.801814]
[1693466345047,0.67102974,27278.0,27277.0,1.068596]
[1693466346526,0.49102974,27278.0,27277.0,1.068596]
[1693466346836,0.49102974,27278.0,27277.0,1.801814]
[1693466347030,0.49102974,27278.0,27277.0,1.068596]
[1693466349235,0.7106993,27278.0,27277.0,1.068596]
[1693466349450,0.7106993,27278.0,27277.0,1.741814]
[1693466350477,0.8906993,27278.0,27277.0,1.721814]
[1693466351052,0.8906993,27278.0,27277.0,2.455032]
[1693466352356,0.67102974,27278.0,27277.0,2.455032]
[1693466352914,0.67102974,27278.0,27277.0,1.721814]
[1693466353359,0.8906993,27278.0,27277.0,1.721814]
[1693466355314,0.71505892,27278.0,27277.0,1.721814]
[1693466359187,0.49538936,27278.0,27277.0,1.721814]
[1693466360790,0.49538936,27278.0,27277.0,0.988596]
[1693466363120,0.75942747,27278.0,27277.0,0.988596]
[1693466363278,0.75942747,27278.0,27277.0,1.721814]
[1693466366206,0.75942747,27278.0,27277.0,0.988596]
[1693466368228,0.75942747,27278.0,27277.0,0.968596]
[1693466370273,0.75942747,27278.0,27277.0,1.701814]
[1693466370649,0.73856053,27278.0,27277.0,1.701814]
[1693466371434,0.73856053,27278.0,27277.0,2.435032]
[1693466373793,0.73856053,27278.0,27277.0,1.701814]
[1693466375288,0.73856053,27278.0,27277.0,1.626214]
[1693466376340,0.47442023,27278.0,27277.0,1.626214]
[1693466386743,0.47442023,27278.0,27277.0,2.455032]
[1693466387499,0.47442023,27278.0,27277.0,3.28825]
[1693466387671,0.40308886,27278.0,27277.0,3.28825]
[1693466387892,0.40308886,27278.0,27277.0,3.28225]
[1693466387893,0.69350909,27278.0,27277.0,3.28225]
[1693466388195,0.69750909,27278.0,27277.0,3.29925]
[1693466388693,0.69150909,27278.0,27277.0,3.27525]
[1693466388992,0.69750909,27278.0,27277.0,3.30625]
[1693466389412,0.87154305,27278.0,27277.0,3.29225]
[1693466389816,0.87554305,27278.0,27277.0,3.30625]
[1693466390195,0.87554327,27278.0,27277.0,3.30625]
[1693466391937,0.36403418,27278.0,27277.0,3.30625]
[1693466393274,0.49602077,27278.0,27277.0,3.30625]
[1693466394134,0.31998659,27278.0,27277.0,3.30625]
[1693466394342,0.27598858,27278.0,27277.0,3.30625]
[1693466403607,0.27598858,27278.0,27277.0,3.28625]
[1693466403813,0.27598858,27278.0,27277.0,3.30625]
[1693466404435,0.27598858,27278.0,27277.0,3.28625]
[1693466404641,0.27598858,27278.0,27277.0,3.30625]
[1693466409921,0.27598858,27278.0,27277.0,1.839814]
[1693466410383,0.27598858,27278.0,27277.0,2.573032]
[1693466411611,0.27598858,27278.0,27277.0,3.30625]
[1693466411832,0.188,27278.0,27277.0,3.30625]
[1693466412034,0.27598858,27278.0,27277.0,3.30625]
[1693466412238,0.188,27278.0,27277.0,3.30625]
[1693466412624,0.27598858,27278.0,27277.0,3.30625]
[1693466412858,0.188,27278.0,27277.0,3.30625]
[1693466413041,0.27598858,27278.0,27277.0,3.30625]
[1693466413244,0.188,27278.0,27277.0,3.30625]